[Event "Germany Countries-chT Youth 2022"]
[Site "Wiesbaden"]
[Date "2022.10.02"]
[Round "4"]
[White "Yue, Qizhou"]
[Black "Buchinger, Alexis"]
[Result "1/2-1/2"]
[ECO "C45"]
[WhiteElo "1711"]
[BlackElo "1802"]
[Annotator "NA RC COMBH"]
[PlyCount "108"]
[EventDate "2022.09.28"]
[EventType "team-tourn"]
[EventRounds "7"]
[EventCountry "GER"]
[SourceTitle "playchess.com"]
[Source "ChessBase"]
[SourceQuality "1"]
[TimeControl "40/5400+30:1800+30"]

1. e4 {[%emt 0:00:30]} e5 {[%emt 0:00:14]} 2. Nf3 {[%emt 0:00:23]} Nc6 {[%emt 0:00:08]} 3. d4 {[%emt 0:00:06]} exd4 {[%emt 0:00:08]} 4. Nxd4 {[%emt 0:00:13]} Nf6 {[%emt 0:00:59]} 5. Nxc6 {[%emt 0:00:14]} bxc6 {[%emt 0:00:04]} 6. e5 {[%emt 0:00:11]} Qe7 {[%emt 0:00:22]} 7. Qe2 {[%emt 0:00:10]} Nd5 {[%emt 0:00:04]} 8. h4 {[%emt 0:00:17]} a5 {[%emt 0:00:59]} 9. c4 {[%emt 0:03:37]} Ba6 {[%emt 0:02:16]} 10. Nd2 {[%emt 0:12:22]} h6 $14 {[%emt 0:07:51]} (10... g6 $11 {might be stronger.}) 11. Qe4 {[%emt 0:06:39]} Nb6 {[%emt 0:01:58]} (11... Nb4 $5 {[%cal Rd7d5]}) 12. Bd3 {[%emt 0:07:17]} (12. b3 $142) 12... Rb8 {[%emt 0:02:12]} 13. b3 {[%emt 0:02:31]} Bb7 {[%emt 0:05:44]} 14. Bb2 {[%emt 0:11:49]} d5 {[%emt 0:17:56]} 15. Qg4 {[%emt 0:04:50]} Bc8 {[%emt 0:01:19]} 16. Qg3 {[%emt 0:05:07]} Be6 {[%emt 0:07:45]} 17. cxd5 {[%emt 0:02:06]} cxd5 {[%emt 0:00:42]} 18. O-O {[%emt 0:03:46]} g5 {[%emt 0:09:51]} 19. h5 {[%emt 0:01:05]} Bg7 {[%emt 0:00:44]} 20. f4 {[%emt 0:01:06]} Rg8 $2 {[%emt 0:07:02]} (20... Na4 {was necessary.}) 21. f5 {[%emt 0:00:39]} Bd7 {[%emt 0:00:24]} 22. Rac1 {[%emt 0:06:24]} Qd8 {[%emt 0:01:10]} 23. Ba3 {[%emt 0:03:49]} c6 {[%emt 0:01:48]} 24. f6 {[%emt 0:01:51]} Bf8 {[%emt 0:00:14]} 25. Bxf8 {[%emt 0:00:35]} Kxf8 {[%emt 0:03:40]} 26. e6 {[%emt 0:03:59]} Bxe6 {[%emt 0:04:06]} 27. Rxc6 {[%emt 0:00:14]} Rc8 {[%emt 0:02:45]} 28. Rxc8 {[%emt 0:00:22]} Nxc8 {[%emt 0:00:28]} 29. Kh1 {[%emt 0:05:20]} g4 {[%emt 0:03:25]} 30. Qe3 {[%emt 0:06:46]} Rg5 {[%emt 0:00:37]} 31. Bg6 {[%emt 0:04:46]} fxg6 {[%emt 0:03:37]} 32. Qxe6 {[%emt 0:00:42]} Rxh5+ {[%emt 0:00:12]} 33. Kg1 {[%emt 0:00:08]} Qb6+ {[%emt 0:00:20]} 34. Qxb6 {[%emt 0:00:08]} Nxb6 {[%emt 0:00:02]} 35. Rf4 {[%emt 0:01:00]} Rf5 {[%emt 0:00:57]} 36. Rxg4 {[%emt 0:00:30]} Rxf6 {[%emt 0:00:05]} 37. Nf3 {[%emt 0:01:06]} (37. a4 $15) 37... Ke7 {[%emt 0:00:49]} 38. Kf2 {[%emt 0:01:09]} Kd6 {[%emt 0:00:36]} 39. Ke3 {[%emt 0:00:52]} g5 {[%emt 0:05:18]} 40. Kd4 $2 {[%emt 0:02:56]} (40. Kd2 $17) 40... Nc8 {[%emt 0:03:24]} 41. Ke3 {[%emt 0:03:06]} Ne7 {[%emt 0:02:06]} 42. Ra4 {[%emt 0:00:47]} Nc6 {[%emt 0:00:09]} 43. g3 {[%emt 0:05:10]} (43. a3 $17 {keeps fighting.}) 43... Kc5 {[%emt 0:04:17]} 44. a3 {[%emt 0:02:37] [#]} Rf7 $2 {[%emt 0:04:33]} (44... Rxf3+ $1 {[%mdl 512]} 45. Kxf3 Nd4+ 46. Ke3 Nxb3) 45. Ne1 {[%emt 0:04:22]} Re7+ {[%emt 0:03:29]} 46. Kd2 {[%emt 0:00:24]} Re4 $2 {[%emt 0:02:54]} (46... h5 $19 {and Black stays clearly on top.} 47. Nf3 d4 48. Nxg5 Re3 49. Rc4+ Kd5) 47. Nd3+ {[%emt 0:01:03]} (47. Rxe4 $17 dxe4 48. Nc2) 47... Kb5 $2 {[%emt 0:04:53]} (47... Kd6 $19 48. Rxe4 dxe4) 48. Rxe4 {[%emt 0:02:55]} dxe4 {[%emt 0:00:06]} 49. Nf2 {[%emt 0:00:33]} Nd4 {[%emt 0:00:06]} 50. b4 $1 {[%emt 0:02:29]} a4 {[%emt 0:06:55]} 51. Nxe4 {[%emt 0:00:24]} Kc4 {[%emt 0:01:06]} 52. Nc5 {[%emt 0:00:39]} Nb5 {[%emt 0:03:17]} (52... Nb3+ $2 53. Nxb3 axb3 54. g4 $18) 53. Nxa4 {[%emt 0:00:50]} Nxa3 {[%emt 0:00:04]} 54. Ke2 {[%emt 0:04:21]} Kxb4 {[%emt 0:00:38]} 1/2-1/2

[Event "Germany Countries-chT Youth 2022"]
[Site "Wiesbaden"]
[Date "2022.10.02"]
[Round "4"]
[White "Keymer, Cecilia"]
[Black "Bezsonna, Polina"]
[Result "1/2-1/2"]
[ECO "A56"]
[WhiteElo "1696"]
[BlackElo "1649"]
[Annotator "NA RC COMBH"]
[PlyCount "97"]
[EventDate "2022.09.28"]
[EventType "team-tourn"]
[EventRounds "7"]
[EventCountry "GER"]
[SourceTitle "playchess.com"]
[Source "ChessBase"]
[SourceQuality "1"]
[TimeControl "40/5400+30:1800+30"]

1. d4 {[%emt 0:00:04]} Nf6 {[%emt 0:00:11]} 2. c4 {[%emt 0:00:03]} c5 {[%emt 0:00:06]} 3. Nf3 {[%emt 0:00:08]} g6 {[%emt 0:00:35]} 4. Nc3 {[%emt 0:01:34]} cxd4 {[%emt 0:00:35]} 5. Nxd4 {[%emt 0:00:08]} Nc6 {[%emt 0:00:32]} 6. Nc2 {[%emt 0:03:10]} Bg7 {[%emt 0:01:57]} 7. g3 {[%emt 0:00:52]} O-O {[%emt 0:03:23]} 8. Bg2 {[%emt 0:00:13]} d6 {[%emt 0:02:53]} 9. O-O {[%emt 0:01:01]} Ne8 {[%emt 0:04:36]} 10. Nd5 {[%emt 0:04:47]} e6 {[%emt 0:03:31]} 11. Nf4 {[%emt 0:04:36]} f5 {[%emt 0:08:23]} 12. Rb1 {[%emt 0:05:05]} g5 {[%emt 0:15:17]} 13. Nh5 {[%emt 0:02:28]} Bh8 {[%emt 0:02:05]} 14. b3 {[%emt 0:03:50]} h6 {[%emt 0:11:58]} 15. Bb2 {[%emt 0:02:31]} Bxb2 {[%emt 0:03:29]} 16. Rxb2 {[%emt 0:00:05]} Qe7 {[%emt 0:02:36]} 17. h3 {[%emt 0:03:36]} e5 {[%emt 0:08:05]} 18. Bd5+ {[%emt 0:02:38]} Kh8 {[%emt 0:02:18]} 19. e4 {[%emt 0:08:43]} f4 {[%emt 0:03:22]} 20. g4 {[%emt 0:01:45]} Nc7 {[%emt 0:01:39]} 21. Qd3 {[%emt 0:05:33]} Bd7 {[%emt 0:02:35]} 22. Rd1 {[%emt 0:01:51]} Rad8 {[%emt 0:01:58]} 23. b4 {[%emt 0:02:31]} b6 {[%emt 0:13:21]} 24. Rb3 {[%emt 0:05:46]} Nb8 {[%emt 0:02:02]} 25. b5 {[%emt 0:06:56]} Nxd5 {[%emt 0:01:31]} 26. Qxd5 {[%emt 0:04:05]} Be6 {[%emt 0:00:41]} 27. Qd3 {[%emt 0:00:46]} Bf7 {[%emt 0:00:49]} 28. Qe2 {[%emt 0:03:03]} Rd7 {[%emt 0:01:21]} 29. Nb4 {[%emt 0:02:15]} Bxh5 {[%emt 0:00:19]} 30. gxh5 {[%emt 0:00:31]} Qf7 {[%emt 0:01:13]} 31. Kg2 {[%emt 0:03:18]} Qe6 {[%emt 0:01:28]} 32. Nd5 {[%emt 0:07:00]} Rg8 {[%emt 0:00:37]} 33. Qg4 {[%emt 0:03:04]} Qxg4+ {[%emt 0:00:50]} 34. hxg4 {[%emt 0:00:05]} Rc8 {[%emt 0:00:32]} 35. Rc3 {[%emt 0:00:42]} Kg7 {[%emt 0:00:15]} 36. Kf3 {[%emt 0:02:50]} Kf7 {[%emt 0:00:20]} 37. Ke2 {[%emt 0:01:59]} Ke6 {[%emt 0:00:33]} 38. Kd3 {[%emt 0:03:35]} Rdd8 {[%emt 0:00:34]} 39. Ra3 {[%emt 0:01:24]} Rd7 {[%emt 0:00:41]} 40. Rb1 {[%emt 0:02:45]} Rb7 {[%emt 0:00:31]} 41. f3 {[%emt 0:09:26]} Nd7 {[%emt 0:04:59]} 42. Kc3 {[%emt 0:05:13]} Nb8 {[%emt 0:07:12]} 43. Kb4 {[%emt 0:01:54]} Nd7 {[%emt 0:04:18]} 44. Rd1 {[%emt 0:03:46]} Rd8 {[%emt 0:02:48]} 45. Rad3 {[%emt 0:02:44]} Nb8 {[%emt 0:00:34]} 46. Kb3 {[%emt 0:04:02]} Rbd7 {[%emt 0:01:53]} 47. Kb4 {[%emt 0:01:59]} Rb7 {[%emt 0:00:37]} 48. Kb3 {[%emt 0:03:58]} Rbd7 {[%emt 0:01:34]} 49. Kb4 {[%emt 0:00:18]} 1/2-1/2

[Event "Germany Countries-chT Youth 2022"]
[Site "Wiesbaden"]
[Date "2022.10.02"]
[Round "4"]
[White "Haug, Mara"]
[Black "Wilmink, Anna"]
[Result "0-1"]
[ECO "C26"]
[WhiteElo "1611"]
[BlackElo "1702"]
[Annotator "NA RC COMBH"]
[PlyCount "66"]
[EventDate "2022.09.28"]
[EventType "team-tourn"]
[EventRounds "7"]
[EventCountry "GER"]
[SourceTitle "playchess.com"]
[Source "ChessBase"]
[SourceQuality "1"]
[TimeControl "40/5400+30:1800+30"]

1. e4 {[%emt 0:00:09]} e5 {[%emt 0:00:10]} 2. Nc3 {[%emt 0:00:07]} Nf6 {[%emt 0:00:06]} 3. g3 {[%emt 0:00:04]} d5 {[%emt 0:00:10]} 4. exd5 {[%emt 0:00:06]} Nxd5 {[%emt 0:00:04]} 5. Bg2 {[%emt 0:00:08]} Nxc3 {[%emt 0:00:07]} 6. bxc3 {[%emt 0:00:05]} Nc6 {[%emt 0:00:18]} 7. Bb2 {[%emt 0:02:43]} Be6 {[%emt 0:01:23]} 8. d4 {[%emt 0:01:28]} Bd5 {[%emt 0:01:41]} 9. f3 {[%emt 0:02:41]} Qe7 {[%emt 0:07:01]} 10. Qe2 {[%emt 0:04:02]} Qe6 {[%emt 0:05:14]} 11. Bh3 {[%emt 0:07:20]} f5 {[%emt 0:05:12]} 12. Bf1 {[%emt 0:05:22]} b5 {[%emt 0:20:14]} 13. Qe3 {[%emt 0:15:53]} a6 {[%emt 0:02:44]} 14. Bd3 {[%emt 0:09:07]} Bd6 {[%emt 0:04:33]} 15. a4 {[%emt 0:03:57]} Rb8 {[%emt 0:03:04]} 16. axb5 {[%emt 0:02:22]} axb5 {[%emt 0:00:35]} 17. Qe2 {[%emt 0:01:27]} Bc4 {[%emt 0:02:15]} 18. Nh3 {[%emt 0:04:07]} h6 {[%emt 0:02:13]} 19. Nf2 {[%emt 0:01:23]} O-O {[%emt 0:02:10]} 20. O-O {[%emt 0:04:23]} Qd5 {[%emt 0:03:36]} 21. Qe3 {[%emt 0:07:39]} exd4 {[%emt 0:01:32]} 22. cxd4 {[%emt 0:01:48]} Rbe8 {[%emt 0:02:38]} 23. Bxc4 {[%emt 0:02:13]} bxc4 {[%emt 0:01:41]} 24. Qd2 {[%emt 0:02:22]} Qxf3 {[%emt 0:05:43]} 25. Rae1 {[%emt 0:02:50]} Rxe1 {[%emt 0:04:23]} 26. Rxe1 {[%emt 0:00:15]} f4 {[%emt 0:02:13]} 27. g4 {[%emt 0:02:06]} Qd5 {[%emt 0:02:46]} 28. c3 {[%emt 0:04:03]} f3 {[%emt 0:03:03]} 29. Qe3 {[%emt 0:00:58]} Bf4 {[%emt 0:02:16]} 30. Qe6+ {[%emt 0:00:58]} Qxe6 {[%emt 0:00:14]} 31. Rxe6 {[%emt 0:00:12]} Rb8 {[%emt 0:02:56]} 32. Rxc6 {[%emt 0:03:02]} Rxb2 {[%emt 0:00:07]} 33. Rxc4 {[%emt 0:00:08]} Rb1+ {[%emt 0:00:21]} 0-1

[Event "Germany Countries-chT Youth 2022"]
[Site "Wiesbaden"]
[Date "2022.10.02"]
[Round "4"]
[White "Woerz, Ann-Sophie"]
[Black "Mukazhanov, Mansur"]
[Result "0-1"]
[ECO "A15"]
[WhiteElo "1607"]
[BlackElo "1319"]
[Annotator "NA RC COMBH"]
[PlyCount "130"]
[EventDate "2022.09.28"]
[EventType "team-tourn"]
[EventRounds "7"]
[EventCountry "GER"]
[SourceTitle "playchess.com"]
[Source "ChessBase"]
[SourceQuality "1"]
[TimeControl "40/5400+30:1800+30"]

1. c4 {[%emt 0:00:03]} Nf6 {[%emt 0:00:14]} 2. g3 {[%emt 0:00:04]} e6 {[%emt 0:01:12]} 3. Bg2 {[%emt 0:00:22]} c5 {[%emt 0:00:40]} 4. Nf3 {[%emt 0:00:16]} Nc6 {[%emt 0:00:13]} 5. O-O {[%emt 0:00:23]} Be7 {[%emt 0:00:12]} 6. a3 {[%emt 0:02:36]} O-O {[%emt 0:00:33]} 7. d3 {[%emt 0:02:42]} b6 {[%emt 0:00:35]} 8. Nc3 {[%emt 0:01:20]} Bb7 {[%emt 0:00:11]} 9. Rb1 {[%emt 0:00:37]} d5 {[%emt 0:01:11]} 10. cxd5 {[%emt 0:00:06]} Nxd5 {[%emt 0:00:13]} 11. Bf4 {[%emt 0:04:24]} Bd6 {[%emt 0:04:42]} 12. Bg5 {[%emt 0:01:37]} f6 {[%emt 0:00:39]} 13. Bc1 {[%emt 0:01:55]} Nce7 {[%emt 0:02:23]} 14. Nb5 {[%emt 0:02:57]} Bb8 {[%emt 0:01:29]} 15. d4 {[%emt 0:01:23]} a6 {[%emt 0:00:21]} 16. Nc3 {[%emt 0:00:06]} c4 {[%emt 0:01:56]} 17. a4 {[%emt 0:07:29]} Qd7 {[%emt 0:01:13]} 18. Bd2 {[%emt 0:02:42]} b5 {[%emt 0:00:41]} 19. b3 {[%emt 0:00:55]} Bc6 {[%emt 0:00:58]} 20. bxc4 {[%emt 0:02:42]} bxc4 {[%emt 0:02:21]} 21. Qc2 {[%emt 0:04:25]} Ba7 {[%emt 0:00:20]} 22. a5 {[%emt 0:02:45]} Rac8 {[%emt 0:01:34]} 23. e3 {[%emt 0:06:32]} Nxc3 {[%emt 0:03:58]} 24. Qxc3 {[%emt 0:02:24]} Bb5 {[%emt 0:00:22]} 25. Rfc1 {[%emt 0:04:32]} Rc7 {[%emt 0:01:11]} 26. Ne1 {[%emt 0:02:57]} Rfc8 {[%emt 0:00:11]} 27. Nc2 {[%emt 0:00:54]} Nd5 {[%emt 0:00:12]} 28. Qa3 {[%emt 0:02:12]} c3 {[%emt 0:00:08]} 29. Be1 {[%emt 0:00:39]} Bd3 {[%emt 0:00:52]} 30. Rb3 {[%emt 0:00:44]} Rb7 {[%emt 0:01:05]} 31. Rxb7 {[%emt 0:06:54]} Qxb7 {[%emt 0:00:51]} 32. e4 {[%emt 0:06:12]} Qb2 {[%emt 0:01:48]} 33. exd5 {[%emt 0:02:11]} Bxc2 {[%emt 0:01:33]} 34. Qa1 {[%emt 0:04:39]} Bxd4 {[%emt 0:03:18]} 35. dxe6 {[%emt 0:00:42]} Qxa1 {[%emt 0:00:30]} 36. Rxa1 {[%emt 0:00:15]} Bb3 {[%emt 0:00:24]} 37. Bxc3 {[%emt 0:08:56]} Bxc3 {[%emt 0:00:43]} 38. Rc1 {[%emt 0:00:06]} Bxe6 {[%emt 0:00:05]} 39. Bb7 {[%emt 0:00:18]} Rc7 {[%emt 0:00:06]} 40. Bxa6 {[%emt 0:00:37]} Bxa5 {[%emt 0:00:05]} 41. Rxc7 {[%emt 0:30:22]} Bxc7 {[%emt 0:30:22]} 42. Kg2 {[%emt 0:00:34]} Kf7 {[%emt 0:00:07]} 43. Kf3 {[%emt 0:00:09]} h5 {[%emt 0:00:14]} 44. Ke4 {[%emt 0:02:24]} g5 {[%emt 0:01:35]} 45. h4 {[%emt 0:05:42]} g4 {[%emt 0:00:47]} 46. Bd3 {[%emt 0:01:54]} f5+ {[%emt 0:01:03]} 47. Ke3 {[%emt 0:00:17]} Kf6 {[%emt 0:00:15]} 48. Ba6 {[%emt 0:01:38]} Bd5 {[%emt 0:00:16]} 49. Bb5 {[%emt 0:02:04]} Bf3 {[%emt 0:00:35]} 50. Kd2 {[%emt 0:00:19]} Ba5+ {[%emt 0:00:05]} 51. Ke3 {[%emt 0:00:26]} Bb6+ {[%emt 0:00:09]} 52. Kf4 {[%emt 0:00:17]} Bxf2 {[%emt 0:00:43]} 53. Be8 {[%emt 0:00:03]} Be1 {[%emt 0:00:11]} 54. Ke3 {[%emt 0:00:42]} Bxg3 {[%emt 0:00:09]} 55. Bxh5 {[%emt 0:00:11]} Bxh4 {[%emt 0:00:08]} 56. Kf4 {[%emt 0:00:41]} Bg5+ {[%emt 0:00:44]} 57. Kg3 {[%emt 0:00:16]} f4+ {[%emt 0:00:09]} 58. Kf2 {[%emt 0:00:22]} Bh4+ {[%emt 0:00:10]} 59. Kf1 {[%emt 0:00:26]} Kg5 {[%emt 0:00:13]} 60. Be8 {[%emt 0:00:09]} g3 {[%emt 0:00:23]} 61. Bd7 {[%emt 0:00:28]} Be4 {[%emt 0:01:15]} 62. Bh3 {[%emt 0:00:20]} f3 {[%emt 0:00:21]} 63. Bg2 {[%emt 0:00:57]} Kg4 {[%emt 0:00:48]} 64. Bh1 {[%emt 0:01:48]} Bd3+ {[%emt 0:00:38]} 65. Kg1 {[%emt 0:00:11]} f2+ {[%emt 0:00:06]} 0-1

[Event "Germany Countries-chT Youth 2022"]
[Site "Wiesbaden"]
[Date "2022.10.02"]
[Round "4"]
[White "Neininger, Sarah"]
[Black "Richter, Johanna"]
[Result "0-1"]
[ECO "B24"]
[WhiteElo "1589"]
[BlackElo "1355"]
[Annotator "NA RC COMBH"]
[PlyCount "100"]
[EventDate "2022.09.28"]
[EventType "team-tourn"]
[EventRounds "7"]
[EventCountry "GER"]
[SourceTitle "playchess.com"]
[Source "ChessBase"]
[SourceQuality "1"]
[TimeControl "40/5400+30:1800+30"]

1. e4 {[%emt 0:00:04]} c5 {[%emt 0:00:06]} 2. Nc3 {[%emt 0:00:10]} Nc6 {[%emt 0:00:07]} 3. Bb5 {[%emt 0:00:08]} Nd4 {[%emt 0:00:07]} 4. Bc4 {[%emt 0:00:08]} e6 {[%emt 0:00:05]} 5. Nge2 {[%emt 0:00:21]} Nxe2 {[%emt 0:06:16]} 6. Qxe2 {[%emt 0:01:16]} a6 {[%emt 0:00:50]} 7. a4 {[%emt 0:00:30]} Be7 {[%emt 0:00:40]} 8. O-O {[%emt 0:01:18]} d6 {[%emt 0:02:26]} 9. d3 {[%emt 0:00:24]} Nf6 {[%emt 0:02:12]} 10. f4 {[%emt 0:15:56]} O-O {[%emt 0:02:07]} 11. Qf3 {[%emt 0:01:45]} Rb8 {[%emt 0:03:10]} 12. e5 {[%emt 0:03:33]} dxe5 {[%emt 0:02:04]} 13. fxe5 {[%emt 0:00:10]} Nd7 {[%emt 0:00:47]} 14. Bf4 {[%emt 0:05:59]} Nb6 {[%emt 0:11:49]} 15. Bb3 {[%emt 0:02:05]} Bd7 {[%emt 0:01:24]} 16. Kh1 {[%emt 0:01:17]} Bc6 {[%emt 0:00:53]} 17. Qg3 {[%emt 0:01:32]} Re8 {[%emt 0:05:47]} 18. Bh6 {[%emt 0:06:43]} Bf8 {[%emt 0:01:09]} 19. Rxf7 {[%emt 0:06:29]} Re7 {[%emt 0:05:47]} 20. Rxe7 {[%emt 0:11:29]} Qxe7 {[%emt 0:00:26]} 21. Rf1 {[%emt 0:01:08]} Kh8 {[%emt 0:07:21]} 22. Bxe6 {[%emt 0:06:12]} g6 {[%emt 0:01:23]} 23. Rxf8+ {[%emt 0:10:58]} Rxf8 {[%emt 0:00:20]} 24. Bxf8 Qxf8 {[%emt 0:00:22]} 25. h3 {[%emt 0:01:08]} Nxa4 {[%emt 0:02:32]} 26. Nxa4 {[%emt 0:00:28]} Bxa4 {[%emt 0:00:23]} 27. b3 {[%emt 0:02:54]} Bc6 {[%emt 0:00:24]} 28. Bg4 {[%emt 0:00:31]} Qe7 {[%emt 0:01:00]} 29. e6 {[%emt 0:04:09]} Qf6 {[%emt 0:05:00]} 30. Qe1 {[%emt 0:04:29]} h5 {[%emt 0:02:24]} 31. Bd1 {[%emt 0:01:28]} Qg5 {[%emt 0:03:13]} 32. Qf1 {[%emt 0:03:32]} Qe7 {[%emt 0:00:53]} 33. Qf7 {[%emt 0:01:05]} Qxf7 {[%emt 0:00:45]} 34. exf7 {[%emt 0:00:08]} Kg7 {[%emt 0:00:32]} 35. Kg1 {[%emt 0:00:10]} Kxf7 {[%emt 0:00:05]} 36. Kf2 {[%emt 0:00:12]} Kf6 {[%emt 0:00:19]} 37. Bf3 {[%emt 0:01:35]} Bxf3 {[%emt 0:00:20]} 38. Kxf3 {[%emt 0:00:06]} Kf5 {[%emt 0:00:13]} 39. g4+ {[%emt 0:01:59]} hxg4+ {[%emt 0:00:12]} 40. hxg4+ {[%emt 0:00:07]} Ke5 {[%emt 0:00:18]} 41. c3 {[%emt 0:30:34]} g5 {[%emt 0:30:37]} 42. Ke3 {[%emt 0:00:20]} a5 {[%emt 0:00:44]} 43. d4+ {[%emt 0:03:09]} cxd4+ {[%emt 0:00:28]} 44. cxd4+ {[%emt 0:00:11]} Kd5 {[%emt 0:00:05]} 45. Kd3 {[%emt 0:03:36]} b5 {[%emt 0:00:38]} 46. Kc3 {[%emt 0:00:00]} Ke4 {[%emt 0:00:00]} 47. Kd2 {[%emt 0:00:00]} Kxd4 {[%emt 0:00:00]} 48. Kc2 {[%emt 0:00:00]} a4 {[%emt 0:00:00]} 49. bxa4 {[%emt 0:00:00]} bxa4 {[%emt 0:00:00]} 50. Kb2 {[%emt 0:00:00]} Ke4 {[%emt 0:00:00]} 0-1

[Event "Germany Countries-chT Youth 2022"]
[Site "Wiesbaden"]
[Date "2022.10.02"]
[Round "4"]
[White "Trunz, Tamila"]
[Black "Schwarzfischer, Julia"]
[Result "1-0"]
[ECO "C50"]
[WhiteElo "1521"]
[BlackElo "1256"]
[Annotator "NA RC COMBH"]
[PlyCount "110"]
[EventDate "2022.09.28"]
[EventType "team-tourn"]
[EventRounds "7"]
[EventCountry "GER"]
[SourceTitle "playchess.com"]
[Source "ChessBase"]
[SourceQuality "1"]
[TimeControl "40/5400+30:1800+30"]

1. e4 {[%emt 0:00:02]} e5 {[%emt 0:00:06]} 2. Nf3 {[%emt 0:00:06]} Nc6 {[%emt 0:00:06]} 3. Bc4 {[%emt 0:00:09]} d6 {[%emt 0:00:09]} 4. d3 {[%emt 0:00:25]} h6 {[%emt 0:00:11]} 5. Nbd2 {[%emt 0:00:43]} a6 {[%emt 0:00:15]} 6. c3 {[%emt 0:00:51]} Nf6 {[%emt 0:01:40]} 7. Qe2 {[%emt 0:00:23]} Na5 {[%emt 0:00:33]} 8. Bb3 {[%emt 0:00:50]} Nxb3 {[%emt 0:00:30]} 9. axb3 {[%emt 0:00:11]} Qe7 {[%emt 0:01:13]} 10. Nf1 {[%emt 0:00:37]} g5 {[%emt 0:00:40]} 11. Ng3 {[%emt 0:00:46]} Rg8 {[%emt 0:02:02]} 12. Be3 d5 {[%emt 0:04:15]} 13. b4 {[%emt 0:09:34]} b6 14. Bd2 {[%emt 0:01:01]} g4 {[%emt 0:06:47]} 15. Nh4 {[%emt 0:01:09]} h5 {[%emt 0:12:02]} 16. O-O {[%emt 0:08:42]} dxe4 {[%emt 0:01:23]} 17. dxe4 {[%emt 0:03:42]} Bb7 {[%emt 0:02:38]} 18. Nhf5 {[%emt 0:00:38]} Qe6 {[%emt 0:01:56]} 19. b5 Nxe4 {[%emt 0:17:05]} 20. Nxe4 {[%emt 0:06:47]} Qxf5 {[%emt 0:00:32]} 21. Ng3 Qe6 {[%emt 0:01:05]} 22. bxa6 {[%emt 0:00:50]} Bd5 23. Rfe1 {[%emt 0:08:32]} Bd6 {[%emt 0:02:49]} 24. Nxh5 {[%emt 0:04:53]} Kd7 25. Qb5+ {[%emt 0:06:12]} Bc6 {[%emt 0:03:11]} 26. Qd3 Rh8 {[%emt 0:02:15]} 27. Ng7 {[%emt 0:02:26]} Qf6 {[%emt 0:01:45]} 28. Qf5+ {[%emt 0:02:05]} Qxf5 {[%emt 0:00:12]} 29. Nxf5 {[%emt 0:00:04]} Ke6 {[%emt 0:02:21]} 30. Nh6 {[%emt 0:01:24]} Rh7 {[%emt 0:02:46]} 31. b3 {[%emt 0:00:30]} g3 {[%emt 0:00:30]} 32. fxg3 {[%emt 0:03:54]} Bc5+ {[%emt 0:00:17]} 33. Kh1 {[%emt 0:01:19]} Rah8 {[%emt 0:02:19]} 34. Ng4 {[%emt 0:00:31]} Kd7 {[%emt 0:01:36]} 35. a7 {[%emt 0:03:19]} Kc8 {[%emt 0:00:23]} 36. b4 {[%emt 0:00:30]} Ba8 {[%emt 0:00:30]} 37. b5 {[%emt 0:00:30]} Bd6 {[%emt 0:01:07]} 38. Kg1 {[%emt 0:12:04]} f5 39. Nh6 f4 {[%emt 0:01:55]} 40. Ng4 {[%emt 0:03:31]} fxg3 {[%emt 0:02:10]} 41. hxg3 {[%emt 0:31:44]} e4 {[%emt 0:33:50]} 42. Bf4 {[%emt 0:01:11]} Bxf4 {[%emt 0:02:06]} 43. gxf4 {[%emt 0:00:13]} Rh4 {[%emt 0:00:54]} 44. Ne5 {[%emt 0:00:28]} Rg8 {[%emt 0:00:49]} 45. Rxe4 {[%emt 0:04:04]} Rxg2+ {[%emt 0:00:53]} 46. Kxg2 {[%emt 0:00:15]} Bxe4+ {[%emt 0:00:03]} 47. Kg3 {[%emt 0:00:21]} Rh1 {[%emt 0:00:50]} 48. a8=Q+ {[%emt 0:00:30]} Bxa8 {[%emt 0:00:03]} 49. Rxa8+ {[%emt 0:00:11]} Kb7 {[%emt 0:00:02]} 50. Ra2 {[%emt 0:00:22]} Rc1 {[%emt 0:00:10]} 51. Rf2 {[%emt 0:00:22]} Rxc3+ {[%emt 0:00:06]} 52. Kg4 {[%emt 0:00:23]} Rb3 {[%emt 0:00:08]} 53. Kg5 {[%emt 0:03:30]} Rxb5 {[%emt 0:00:19]} 54. f5 {[%emt 0:00:07]} Rd5 {[%emt 0:00:27]} 55. Ng6 {[%emt 0:01:34]} b5 {[%emt 0:13:18]} 1-0